fUST/lending_fUST_20250802
["ID","MTS","AMOUNT","RATE_DAILY","PERIOD"]
[376704597,1754086241987,-460.0,0.00019524,2]
[376704599,1754086241996,-460.0,0.00019524,2]
[376704601,1754086242006,-460.0,0.00019524,2]
[376704603,1754086242015,-995.28,0.00019524,2]
[376704605,1754086242025,-460.0,0.00019524,2]
[376704607,1754086242035,-460.0,0.00019524,2]
[376704609,1754086242044,-460.0,0.00019524,2]
[376704611,1754086242054,-584.13,0.00019524,2]
[376704613,1754086242063,-460.0,0.00019524,2]
[376704615,1754086242073,-460.0,0.00019524,2]
[376704617,1754086242086,-460.0,0.00019524,2]
[376704619,1754086242095,-460.0,0.00019524,2]
[376704621,1754086242105,-851.52,0.00019524,2]
[376704623,1754086242114,-2132.53,0.00019524,2]
[376704625,1754086242124,-460.0,0.00019524,2]
[376704627,1754086242135,-460.0,0.00019524,2]
[376704629,1754086242144,-460.0,0.00019524,2]
[376704631,1754086242154,-460.0,0.00019525,2]
[376704633,1754086242164,-460.0,0.00019525,2]
[376704635,1754086242174,-460.0,0.00019525,2]
[376704637,1754086242184,-460.0,0.00019525,2]
[376704639,1754086242194,-460.0,0.00019525,2]
[376704641,1754086242202,-800.02,0.00019525,2]
[376704643,1754086242212,-200.0,0.00019632,15]
[376704645,1754086242222,-200.0,0.00019632,15]
[376704647,1754086242231,-200.0,0.00019632,15]
[376704649,1754086242240,-200.0,0.00019632,15]
[376704651,1754086242249,-500.0,0.00019773,2]
[376704653,1754086242258,-500.0,0.00019773,2]
[376704655,1754086242268,-460.0,0.00019795,2]
[376704657,1754086242277,-460.0,0.00019795,2]
[376704659,1754086242286,-460.0,0.00019795,2]
[376704661,1754086242296,-460.0,0.00019795,2]
[376704663,1754086242305,-460.0,0.00019795,2]
[376704665,1754086242315,-460.0,0.00019795,2]
[376704667,1754086242324,-460.0,0.00019795,2]
[376704669,1754086242334,-460.0,0.00019795,2]
[376704671,1754086242344,-460.0,0.00019795,2]
[376704673,1754086242353,-460.0,0.00019795,2]
[376704675,1754086242362,-460.0,0.00019795,2]
[376704677,1754086242372,-460.0,0.00019795,2]
[376704679,1754086242381,-460.0,0.00019795,2]
[376704681,1754086242390,-460.0,0.00019795,2]
[376704683,1754086242399,-460.0,0.00019796,2]
[376704684,1754086242408,-460.0,0.00019796,2]
[376704686,1754086242417,-460.0,0.00019796,2]
[376704688,1754086242427,-460.0,0.00019796,2]
[376704690,1754086242440,-460.0,0.00019796,2]
[376704692,1754086242450,-472.39,0.00019796,2]
[376704694,1754086242459,-460.0,0.00019796,2]
[376704698,1754086242470,-460.0,0.00019796,2]
[376704700,1754086242480,-514.29,0.00019796,2]
[376704703,1754086242489,-173.30964846,0.00019796,2]
[376704707,1754086242504,-436.88035154,0.00019796,2]
[376704709,1754086242514,-262.96008868,0.00019796,2]
[376704711,1754086242526,-197.03991132,0.00019796,2]
[376704713,1754086242536,-460.0,0.00019796,2]
[376704715,1754086242545,-578.56,0.00019796,2]
[376704717,1754086242554,-993.16,0.00019796,2]
[376704719,1754086242564,-460.0,0.00019796,2]
[376704721,1754086242574,-574.62,0.00019796,2]
[376704723,1754086242583,-172.07276875,0.00019796,2]
[376704726,1754086242595,-287.92723125,0.00019796,2]
[376704728,1754086242604,-460.0,0.00019796,2]
[376704731,1754086242614,-19.66569675,0.00019796,2]
[376704779,1754086243220,-704.12430325,0.00019796,2]
[376704781,1754086243230,-460.0,0.00019797,2]
[376704782,1754086243239,-460.0,0.00019797,2]
[376704783,1754086243249,-460.0,0.00019797,2]
[376704784,1754086243258,-460.0,0.00019797,2]
[376704785,1754086243267,-460.0,0.00019797,2]
[376704786,1754086243277,-460.0,0.00019797,2]
[376704787,1754086243286,-460.0,0.00019797,2]
[376704788,1754086243295,-460.0,0.00019797,2]
[376704789,1754086243304,-460.0,0.00019797,2]
[376704790,1754086243313,-460.0,0.00019797,2]
[376704792,1754086243322,-460.0,0.00019797,2]
[376704793,1754086243332,-460.0,0.00019797,2]
[376704794,1754086243341,-460.0,0.00019797,2]
[376704796,1754086243351,-460.0,0.00019797,2]
[376704798,1754086243361,-460.0,0.00019797,2]
[376704800,1754086243370,-460.0,0.00019797,2]
[376704802,1754086243379,-460.0,0.00019797,2]
[376704804,1754086243388,-460.0,0.00019797,2]
[376704807,1754086243397,-460.0,0.00019797,2]
[376704810,1754086243407,-3324.66,0.00019797,2]
[376704812,1754086243416,-460.0,0.00019797,2]
[376704814,1754086243425,-460.0,0.00019797,2]
[376704816,1754086243436,-460.0,0.00019797,2]
[376704817,1754086243445,-460.0,0.00019797,2]
[376704819,1754086243454,-460.0,0.00019797,2]
[376704821,1754086243464,-460.0,0.00019797,2]
[376704823,1754086243473,-460.0,0.00019797,2]
[376704825,1754086243482,-460.0,0.00019797,2]
[376704828,1754086243492,-532.79,0.00019797,2]
[376704831,1754086243502,-460.0,0.00019797,2]
[376704833,1754086243511,-460.0,0.00019797,2]
[376704836,1754086243520,-460.0,0.00019797,2]
[376704839,1754086243530,-460.0,0.00019797,2]
[376704842,1754086243540,-460.0,0.00019797,2]
[376704845,1754086243549,-460.0,0.00019797,2]
[376704848,1754086243559,-460.0,0.00019797,2]
[376704850,1754086243568,-460.0,0.00019797,2]
[376704852,1754086243577,-460.0,0.00019797,2]
[376704854,1754086243586,-460.0,0.00019797,2]
[376704856,1754086243595,-460.0,0.00019797,2]
[376704858,1754086243604,-460.0,0.00019797,2]
[376704860,1754086243613,-479.46,0.00019797,2]
[376704862,1754086243622,-460.0,0.00019797,2]
[376704863,1754086243633,-460.0,0.00019797,2]
[376704865,1754086243642,-536.7,0.00019797,2]
[376704867,1754086243651,-50.00167381,0.00019797,2]
[376705104,1754086246245,-460.0,0.00019521,2]
[376705106,1754086246254,-460.0,0.00019521,2]
[376705108,1754086246264,-409.99832619,0.00019797,2]
[376705114,1754086246312,-464.6,0.00019797,2]
[376705116,1754086246321,-460.0,0.00019797,2]
[376705118,1754086246330,-460.0,0.00019797,2]
[376705120,1754086246339,-460.0,0.00019797,2]
[376705122,1754086246348,-460.0,0.00019797,2]
[376705124,1754086246357,-460.0,0.00019797,2]
[376705126,1754086246366,-460.0,0.00019797,2]
[376705128,1754086246375,-1879.46,0.00019797,2]
[376705129,1754086246384,-460.0,0.00019797,2]
[376705131,1754086246393,-678.94,0.00019797,2]
[376705133,1754086246402,-654.24,0.00019797,2]
[376705135,1754086246411,-460.0,0.00019797,2]
[376705137,1754086246420,-1133.61,0.00019797,2]
[376705139,1754086246429,-460.0,0.00019797,2]
[376705141,1754086246439,-201.33097933,0.00019797,2]
[376705143,1754086246448,-554.29,0.00019797,2]
[376705145,1754086246457,-462.75,0.00019797,2]
[376705147,1754086246466,-330.96888202,0.00019797,2]
[376705149,1754086246478,-191.75111798,0.00019797,2]
[376705151,1754086246487,-151.0,0.00019798,2]
[376705153,1754086246498,-151.00513958,0.00019798,2]
[376705155,1754086246506,-151.0,0.00019798,2]
[376705157,1754086246516,-151.0,0.00019798,2]
[376705159,1754086246525,-151.0,0.00019798,2]
[376705161,1754086246535,-151.0,0.00019798,2]
[376705163,1754086246544,-527.24374244,0.00019798,2]
[376705166,1754086246556,-185.75625756,0.00019798,2]
[376705168,1754086246565,-245.0,0.00019798,2]
[376705170,1754086246574,-460.0,0.00019798,2]
[376705172,1754086246583,-460.0,0.00019798,2]
[376705174,1754086246592,-460.0,0.00019798,2]
[376705176,1754086246602,-460.0,0.00019798,2]
[376705178,1754086246611,-460.0,0.00019798,2]
[376705180,1754086246620,-579.13902897,0.00019798,2]
[376705182,1754086246629,-460.0,0.00019798,2]
[376705184,1754086246639,-542.12,0.00019798,2]
[376705186,1754086246648,-460.0,0.00019798,2]
[376705187,1754086246658,-460.0,0.00019798,2]
[376705189,1754086246667,-460.0,0.00019798,2]
[376705191,1754086246676,-460.0,0.00019798,2]
[376705193,1754086246685,-460.0,0.00019798,2]
[376705195,1754086246696,-460.0,0.00019798,2]
[376705198,1754086246706,-276.36147129,0.00019798,2]
[376705199,1754086246716,-460.0,0.00019798,2]
[376705201,1754086246725,-460.0,0.00019798,2]
[376705203,1754086246735,-460.0,0.00019798,2]
[376705205,1754086246744,-460.0,0.00019798,2]
[376705207,1754086246754,-460.0,0.00019798,2]
[376705209,1754086246763,-995.28,0.00019798,2]
[376705211,1754086246772,-460.0,0.00019798,2]
[376705213,1754086246783,-460.0,0.00019798,2]
[376705215,1754086246792,-460.0,0.00019798,2]
[376705217,1754086246802,-584.13,0.00019798,2]
[376705219,1754086246811,-460.0,0.00019798,2]
[376705221,1754086246820,-460.0,0.00019798,2]
[376705223,1754086246830,-460.0,0.00019798,2]
[376705225,1754086246839,-460.0,0.00019798,2]
[376705227,1754086246848,-851.52,0.00019798,2]
[376705229,1754086246858,-2132.53,0.00019798,2]
[376705231,1754086246868,-460.0,0.00019798,2]
[376705233,1754086246877,-460.0,0.00019798,2]
[376705235,1754086246887,-460.0,0.00019799,2]
[376705237,1754086246896,-800.02,0.00019799,2]
[376705239,1754086246905,-874.48852535,0.00019972,2]
[376705241,1754086246914,-986.0985004,0.00019996,2]
[376705243,1754086246923,-511.18,0.00020069,2]
[376705245,1754086246933,-460.0,0.00020069,2]
[376705247,1754086246944,-570.3408075,0.00020069,2]
[376705249,1754086246953,-460.0,0.00020069,2]
[376705251,1754086246963,-460.0,0.00020069,2]
[376705253,1754086246972,-460.0,0.00020069,2]
[376705254,1754086246981,-460.0,0.00020069,2]
[376705256,1754086246991,-460.0,0.00020069,2]
[376705258,1754086247000,-460.0,0.00020069,2]
[376705260,1754086247009,-460.0,0.00020069,2]
[376705262,1754086247018,-460.0,0.0002007,2]
[376705264,1754086247028,-460.0,0.0002007,2]
[376705266,1754086247039,-460.0,0.0002007,2]
[376705268,1754086247048,-460.0,0.0002007,2]
[376705270,1754086247058,-460.0,0.0002007,2]
[376705272,1754086247069,-472.39,0.0002007,2]
[376705274,1754086247081,-460.0,0.0002007,2]
[376705276,1754086247092,-460.0,0.0002007,2]
[376705278,1754086247101,-514.29,0.0002007,2]
[376705280,1754086247111,-610.19,0.0002007,2]
[376705282,1754086247121,-460.0,0.0002007,2]
[376705284,1754086247131,-460.0,0.0002007,2]
[376705286,1754086247140,-578.56,0.0002007,2]
[376705288,1754086247151,-993.16,0.0002007,2]
[376705290,1754086247160,-460.0,0.0002007,2]
[376705292,1754086247170,-460.0,0.0002007,2]
[376705294,1754086247180,-574.62,0.0002007,2]
[376705296,1754086247191,-460.0,0.0002007,2]
[376705298,1754086247201,-723.79,0.0002007,2]
[376705300,1754086247211,-460.0,0.00020071,2]
[376705302,1754086247220,-460.0,0.00020071,2]
[376705304,1754086247230,-460.0,0.00020071,2]
[376705306,1754086247240,-460.0,0.00020071,2]
[376705308,1754086247250,-470.12659895,0.00020071,2]
[376705310,1754086247260,-460.0,0.00020071,2]
[376705312,1754086247270,-460.0,0.00020071,2]
[376705314,1754086247279,-460.0,0.00020071,2]
[376705316,1754086247289,-460.0,0.00020071,2]
[376705318,1754086247299,-460.0,0.00020071,2]
[376705320,1754086247308,-460.0,0.00020071,2]
[376705322,1754086247318,-460.0,0.00020071,2]
[376705324,1754086247327,-460.0,0.00020071,2]
[376705326,1754086247337,-460.0,0.00020071,2]
[376705328,1754086247347,-460.0,0.00020071,2]
[376705330,1754086247356,-460.0,0.00020071,2]
[376705332,1754086247366,-460.0,0.00020071,2]
[376705334,1754086247376,-3324.66,0.00020071,2]
[376705336,1754086247385,-460.0,0.00020071,2]
[376705338,1754086247395,-460.0,0.00020071,2]
[376705340,1754086247404,-460.0,0.00020071,2]
[376705342,1754086247415,-460.0,0.00020071,2]
[376705344,1754086247424,-460.0,0.00020071,2]
[376705346,1754086247433,-336.3708633,0.00020071,2]
[376705348,1754086247444,-460.0,0.00020071,2]
[376705350,1754086247454,-460.0,0.00020071,2]
[376705352,1754086247463,-532.79,0.00020071,2]
[376705354,1754086247473,-460.0,0.00020071,2]
[376705356,1754086247482,-460.0,0.00020071,2]
[376705358,1754086247491,-460.0,0.00020071,2]
[376705360,1754086247501,-460.0,0.00020071,2]
[376705362,1754086247511,-460.0,0.00020071,2]
[376705364,1754086247521,-460.0,0.00020071,2]
[376705366,1754086247530,-460.0,0.00020071,2]
[376705368,1754086247540,-460.0,0.00020071,2]
[376705370,1754086247550,-460.0,0.00020071,2]
[376705372,1754086247560,-460.0,0.00020071,2]
[376705374,1754086247570,-460.0,0.00020071,2]
[376705376,1754086247580,-479.46,0.00020071,2]
[376705378,1754086247590,-460.0,0.00020071,2]
[376705380,1754086247599,-160.40116783,0.00020071,2]
[376705382,1754086247610,-536.7,0.00020071,2]
[376705384,1754086247620,-460.0,0.00020071,2]
[376705386,1754086247629,-464.6,0.00020071,2]
[376705388,1754086247638,-460.0,0.00020071,2]
[376705390,1754086247648,-460.0,0.00020071,2]
[376705392,1754086247658,-460.0,0.00020071,2]
[376705394,1754086247667,-460.0,0.00020071,2]
[376705396,1754086247676,-460.0,0.00020071,2]
[376705398,1754086247685,-1879.46,0.00020071,2]
[376705400,1754086247697,-678.94,0.00020071,2]
[376705402,1754086247706,-654.24,0.00020071,2]
[376705404,1754086247715,-1133.61,0.00020071,2]
[376705406,1754086247725,-460.0,0.00020071,2]
[376705408,1754086247735,-554.29,0.00020071,2]
[376705410,1754086247744,-462.75,0.00020071,2]
[376705412,1754086247754,-151.0,0.00020072,2]
[376705414,1754086247763,-151.0,0.00020072,2]
[376705416,1754086247773,-151.0,0.00020072,2]
[376705418,1754086247782,-189.21374558,0.00020072,2]
[376705420,1754086247792,-240.60874891,0.00020072,2]
[376705422,1754086247801,-713.0,0.00020072,2]
[376705424,1754086247810,-420.24797262,0.00020072,2]
[376705426,1754086247820,-460.0,0.00020072,2]
[376705429,1754086247833,-460.0,0.00020072,2]
[376705431,1754086247842,-460.0,0.00020072,2]
[376705433,1754086247852,-460.0,0.00020072,2]
[376705435,1754086247861,-460.0,0.00020072,2]
[376705437,1754086247872,-542.12,0.00020072,2]
[376705439,1754086247882,-460.0,0.00020072,2]
[376705441,1754086247892,-460.0,0.00020072,2]
[376705443,1754086247901,-460.0,0.00020072,2]
[376705445,1754086247911,-460.0,0.00020072,2]
[376705447,1754086247921,-460.0,0.00020072,2]
[376705449,1754086247930,-460.0,0.00020072,2]
[376705451,1754086247942,-460.0,0.00020072,2]
[376705453,1754086247951,-460.0,0.00020072,2]
[376705455,1754086247960,-460.0,0.00020072,2]
[376705457,1754086247970,-460.0,0.00020072,2]
[376705459,1754086247979,-995.28,0.00020072,2]
[376705461,1754086247989,-460.0,0.00020072,2]
[376705463,1754086247998,-484.72752095,0.00020072,2]
[376705465,1754086248008,-460.0,0.00020072,2]
[376705467,1754086248018,-584.13,0.00020072,2]
[376705469,1754086248028,-460.0,0.00020072,2]
[376705471,1754086248038,-460.0,0.00020072,2]
[376705473,1754086248047,-460.0,0.00020072,2]
[376705475,1754086248057,-460.0,0.00020072,2]
[376705477,1754086248066,-851.52,0.00020072,2]
[376705479,1754086248076,-2132.53,0.00020072,2]
[376705481,1754086248089,-172.2,0.00020073,2]
[376705483,1754086248098,-800.02,0.00020073,2]
[376705485,1754086248108,-460.0,0.00020343,2]
[376705487,1754086248118,-460.0,0.00020343,2]
[376705489,1754086248130,-460.0,0.00020343,2]
[376705491,1754086248139,-460.0,0.00020343,2]
[376705493,1754086248148,-460.0,0.00020343,2]
[376705495,1754086248159,-465.32702259,0.00020343,2]
[376705497,1754086248169,-460.0,0.00020343,2]
[376705499,1754086248178,-460.0,0.00020344,2]
[376705501,1754086248188,-460.0,0.00020344,2]
[376705504,1754086248199,-460.0,0.00020344,2]
[376705506,1754086248209,-460.0,0.00020344,2]
[376705507,1754086248218,-460.0,0.00020344,2]
[376705510,1754086248228,-472.39,0.00020344,2]
[376705511,1754086248237,-460.0,0.00020344,2]
[376705514,1754086248247,-460.0,0.00020344,2]
[376705516,1754086248256,-514.29,0.00020344,2]
[376705517,1754086248266,-610.19,0.00020344,2]
[376705520,1754086248275,-460.0,0.00020344,2]
[376705522,1754086248285,-460.0,0.00020344,2]
[376705524,1754086248295,-578.56,0.00020344,2]
[376705526,1754086248304,-993.16,0.00020344,2]
[376705528,1754086248313,-460.0,0.00020344,2]
[376705530,1754086248323,-460.0,0.00020344,2]
[376705532,1754086248333,-574.62,0.00020344,2]
[376705534,1754086248343,-460.0,0.00020344,2]
[376705536,1754086248353,-723.79,0.00020344,2]
[376705538,1754086248363,-460.0,0.00020345,2]
[376705540,1754086248372,-460.0,0.00020345,2]
[376705542,1754086248382,-460.0,0.00020345,2]
[376705544,1754086248391,-460.0,0.00020345,2]
[376705546,1754086248401,-460.0,0.00020345,2]
[376705548,1754086248410,-460.0,0.00020345,2]
[376705550,1754086248428,-460.0,0.00020345,2]
[376705552,1754086248447,-460.0,0.00020345,2]
[376705554,1754086248457,-460.0,0.00020345,2]
[376705556,1754086248468,-460.0,0.00020345,2]
[376705558,1754086248478,-460.0,0.00020345,2]
[376705560,1754086248487,-56.37715656,0.00020345,2]
[376705564,1754086248511,-403.62284344,0.00020345,2]
[376705566,1754086248521,-453.9,0.00020345,2]
[376705567,1754086248531,-306.82151538,0.00020345,2]
[376705570,1754086248543,-153.17848462,0.00020345,2]
[376705572,1754086248553,-460.0,0.00020345,2]
[376705574,1754086248563,-226.78093614,0.00020345,2]
[376705576,1754086248575,-233.21906386,0.00020345,2]
[376705578,1754086248585,-3324.66,0.00020345,2]
[376705580,1754086248594,-460.0,0.00020345,2]
[376705582,1754086248605,-460.0,0.00020345,2]
[376705584,1754086248614,-460.0,0.00020345,2]
[376705586,1754086248623,-460.0,0.00020345,2]
[376705588,1754086248634,-460.0,0.00020345,2]
[376705590,1754086248644,-460.0,0.00020345,2]
[376705592,1754086248653,-460.0,0.00020345,2]
[376705594,1754086248664,-532.79,0.00020345,2]
[376705596,1754086248674,-123.2506678,0.00020345,2]
[376706379,1754086256751,5000.0,0.000192,2]
[376716023,1754086363261,2000.2,0.00027108,30]
[376718343,1754086425174,706.011319,0.00018359,2]
[376718344,1754086458750,747.8133191,0.00019149,2]
[376718346,1754086485247,163.655077,0.00013699,2]
[376718378,1754086664102,849.42972878,0.00019148,2]
[376718379,1754086681414,6804.3205338,0.00018315,2]
[376718389,1754086741772,5000.0,0.000192,2]
[376718395,1754086771273,165.657833,0.00018315,2]
[376718396,1754086771485,165.657833,0.00018376,2]
[376718397,1754086771695,165.657833,0.00018437,2]
[376718398,1754086771912,165.657833,0.00018498,2]
[376718399,1754086776084,4684.8454769,0.00018461,2]
[376718400,1754086803579,299.28425714,0.00027134,120]
[376718401,1754086827813,480.0,0.0002191,120]
[376718402,1754086828317,480.0,0.000219,120]
[376718403,1754086828396,1191.0,0.0002191,120]
[376718404,1754086828774,480.0,0.0002189,120]
[376718405,1754086828951,1191.0,0.000219,120]
[376718406,1754086829240,480.0,0.0002389,120]
[376718407,1754086829407,1191.0,0.0002189,120]
[376718408,1754086829685,480.0,0.0002388,120]
[376718409,1754086829876,1191.0,0.0002389,120]
[376718410,1754086830160,480.0,0.0002387,120]
[376718411,1754086830390,1191.0,0.0002388,120]
[376718412,1754086830612,480.0,0.00024882,120]
[376718413,1754086830678,183.08471432,0.00027134,30]
[376718414,1754086831793,480.0,0.00024872,120]
[376718415,1754086832919,469.95005895,0.0002387,120]
[376718416,1754086832948,721.04994105,0.0002387,120]
[376718417,1754086833307,1191.0,0.00024882,120]
[376718418,1754086833753,1191.0,0.00024872,120]
[376718419,1754086855311,167.0,0.00024,120]
[376718420,1754086863107,403.0,0.00027134,60]
[376718423,1754086867204,1040.37057009,0.00027134,120]
[376718424,1754086867500,403.0,0.00027134,60]
[376718425,1754086870433,404.0,0.00027134,60]
[376718426,1754086870939,403.0,0.00027134,60]
[376718427,1754086883381,264.0162897,0.00027134,30]
[376718428,1754086925489,784.07484366,0.00027134,120]
[376718429,1754086948369,334.0,0.00021969,120]
[376718430,1754086948767,334.0,0.00021959,120]
[376718431,1754086949204,334.0,0.00021949,120]
[376718432,1754086949649,334.0,0.0002367,120]
[376718433,1754086950097,334.0,0.0002366,120]
[376718434,1754086950574,334.0,0.0002365,120]
[376718435,1754086951011,334.0,0.0002488,120]
[376718436,1754086951453,334.0,0.0002487,120]
[376718437,1754086961498,188.55632706,0.00018663,2]
[376718439,1754086964253,1215.2,0.00027134,30]
[376718440,1754086970432,151.0,0.00024,120]
[376718441,1754086971833,151.0,0.000252,120]
[376718442,1754087010092,968.39908963,0.00019147,2]
[376718443,1754087036005,400.0,0.00021918,120]
[376718444,1754087036388,400.0,0.00024658,120]
[376718445,1754087041816,350.0,0.00027134,60]
[376718446,1754087042123,351.0,0.00027134,60]
[376718447,1754087042469,350.0,0.00027134,60]
[376718448,1754087044548,675.0,0.00027134,60]
[376718449,1754087045041,675.0,0.00027134,60]
[376718450,1754087045502,675.0,0.00027134,60]
[376718451,1754087046884,676.0,0.00027134,60]
[376718452,1754087047875,933.0,0.00027134,60]
[376718453,1754087048225,933.0,0.00027134,60]
[376718454,1754087048593,933.0,0.00027134,60]
[376718455,1754087048966,933.0,0.00027134,60]
[376718456,1754087067636,10000.0,0.00018244,2]
[376718459,1754087135134,183.079199,0.0001839,2]
[376718460,1754087135379,183.079199,0.0001839,8]
[376718461,1754087135578,183.079199,0.0001839,14]
[376718462,1754087135986,183.079199,0.0001839,20]
[376718463,1754087136191,183.079199,0.0001839,26]
[376718464,1754087136404,183.079199,0.0001839,33]
[376718465,1754087136616,183.079199,0.0001839,39]
[376718466,1754087136816,183.079199,0.0001839,45]
[376718467,1754087137034,183.079199,0.0001839,51]
[376718468,1754087137255,183.079199,0.0001839,57]
[376718469,1754087137457,183.079199,0.0001839,64]
[376718470,1754087137656,183.079199,0.0001839,70]
[376718471,1754087137885,183.079199,0.0001839,76]
[376718472,1754087138114,183.079199,0.0001839,82]
[376718473,1754087138330,183.079199,0.0001839,88]
[376718474,1754087138547,183.079199,0.0001839,95]
[376718475,1754087138783,183.079199,0.0001839,101]
[376718476,1754087139002,183.079199,0.0001839,107]
[376718477,1754087139419,183.079199,0.0001839,113]
[376718478,1754087139672,183.079199,0.0001839,120]
[376718479,1754087152403,24900.0,0.00018244,2]
[376718487,1754087189925,438.0,0.0002191,120]
[376718488,1754087190395,438.0,0.000219,120]
[376718489,1754087190872,438.0,0.0002189,120]
[376718491,1754087191404,438.0,0.00023895,120]
[376718492,1754087192018,438.0,0.00023885,120]
[376718494,1754087192517,438.0,0.00023875,120]
[376718495,1754087193028,438.0,0.0002488,120]
[376718496,1754087193558,438.0,0.0002487,120]
[376718497,1754087216468,842.94653305,0.00019149,2]
[376718500,1754087253037,1816.05240177,0.0002714,120]
[376718501,1754087265138,797.1906177,0.0002714,120]
[376718502,1754087266729,277.539762,0.0002714,120]
[376718503,1754087271224,1506.33335799,0.000246,120]
[376718504,1754087288077,854.68612953,0.0002714,120]
[376718505,1754087292926,232.36493111,0.0002714,120]
[376718506,1754087294090,507.40014706,0.0002714,120]
[376718507,1754087294743,972.20794162,0.0002714,120]
[376718508,1754087296072,847.3492034,0.00019147,2]
[376718509,1754087296979,1050.45182265,0.0002714,120]
[376718510,1754087300434,188.0,0.0002,120]
[376718511,1754087302698,1433.94946534,0.0002714,120]
[376718512,1754087303220,923.17409368,0.0002714,120]
[376718513,1754087305235,257.2732515,0.0002714,120]
[376718514,1754087306228,571.4861566,0.0002714,120]
[376718516,1754087306286,314.23465061,7e-05,120]
[376718518,1754087310584,326.65316251,0.0002714,120]
[376718519,1754087311078,851.51415978,0.0002714,120]
[376718520,1754087312054,693.78642225,0.0002714,120]
[376718521,1754087313308,240.82074905,0.0002714,120]
[376718522,1754087314097,946.29386768,0.00025,120]
[376718523,1754087314160,335.39163289,0.0002714,120]
[376718524,1754087314720,244.0693513,0.0002714,120]
[376718525,1754087315043,575.82639134,0.0002,120]
[376718526,1754087315482,190.11494859,0.0002714,30]
[376718527,1754087316242,244.76825756,0.0002714,30]
[376718528,1754087316331,628.88004412,0.0002714,30]
[376718529,1754087316949,1109.37124719,0.0002714,120]
[376718530,1754087317342,477.68445749,0.00024108,120]
[376718531,1754087317485,1164.8805805,0.00025,120]
[376718532,1754087318625,344.17490683,0.0002714,120]
[376718533,1754087318737,1105.04959839,0.0002714,60]
[376718534,1754087319689,301.58278521,0.00018,2]
[376718535,1754087319747,1015.52067971,0.0002714,120]
[376718536,1754087320248,468.06161726,0.0002714,120]
[376718537,1754087320327,1518.78077799,0.0002714,120]
[376718538,1754087320699,1857.41588253,0.0002714,60]
[376718539,1754087321442,588.29899092,0.0002714,120]
[376718540,1754087321559,429.8910904,0.0002714,120]
[376718541,1754087321664,1235.91797142,0.0002714,120]
[376718542,1754087321728,217.59426728,0.0002714,120]
[376718543,1754087322129,9225.86608815,0.00026,120]
[376718544,1754087322919,319.44696293,0.0002714,120]
[376718545,1754087322971,1536.56690758,0.00025,120]
[376718546,1754087323083,205.34666861,0.0002714,120]
[376718547,1754087323172,512.00797166,0.0002714,30]
[376718548,1754087323284,179.17291579,0.0002714,30]